Workbook

Sheet Sheet1
A1: %,LACTUALS,UPOSTED_TRAN_AMT | B1: %,ATF,FDESCR,UDESCR | C1: %,ATT,FACCOUNT | D1: %,LACTUALS,UPOSTED_TRAN_AMT,SPER,FBOOK_CODE,VR | E1: %,C | F1: %,LACTUALS,UPOSTED_TRAN_AMT,SYTD,FBOOK_CODE,VR | H1: %,LACTUALS,UPOSTED_TRAN_AMT,SPER-1,FBOOK_CODE,VR
B2: Columbia Gas of Kentucky Inc | H2: FOR
B3: Income Statement-FERC | H3: CALC
B4: Regulatory View - FERC Account
B5: For the Month Ended March 31, 2026 | H5: PURPOSES
H6: ONLY
D8: Current | E8: Change from | F8: Year-To- | H8: Prior
D9: Month | E9: Prior Month | F9: Date | H9: Month
B11: Operating Revenues
A13: %,V48000000 | B13: Residential Sales | C13: 48000000 | D13: 16476329.28 | E13: =D13-H13 -> -12650665.33 | F13: 70564416 | H13: 29126994.61
A14: %,V48000100 | B14: Residential Sales Norm | C14: 48000100 | D14: 340153.85 | E14: 340153.85 | F14: 340153.85 | H14: 0
A15: %,R,FACCOUNT,TNI_ACCOUNT_FERC,XBYYYYY01,NGAS_RESID_REV | B15: Gas Residential Sales | D15: 16816483.13 | E15: =D15-H15 -> -12310511.48 | F15: 70904569.85 | H15: 29126994.61
A17: %,V48101000 | B17: Commercial Gas Sales | C17: 48101000 | D17: 7115824.31 | E17: =D17-H17 -> -5266681.18 | F17: 30184611.05 | H17: 12382505.49
A18: %,V48101200 | B18: Commercial Gas Sales Norm | C18: 48101200 | D18: 211204.28 | E18: 211204.28 | F18: 211204.28 | H18: 0
A19: %,NGAS_COMM_REV | B19: Gas Commercial Revenues | D19: 7327028.59 | E19: -5055476.9 | F19: 30395815.33 | H19: 12382505.49
A20: %,V48102000 | B20: Industrial Gas Sales | C20: 48102000 | D20: 290419.3 | E20: -149997.94 | F20: 1141012.23 | H20: 440417.24
A21: %,V48102300 | B21: Industrial Gas Sales Norm | C21: 48102300 | D21: 8426.93 | E21: 8426.93 | F21: 8426.93 | H21: 0
A22: %,NGAS_INDUST_REV | B22: Gas Industrial Revenues | D22: 298846.23 | E22: -141571.01 | F22: 1149439.16 | H22: 440417.24
A23: %,V48103000 | B23: Gas Sales-Other | C23: 48103000 | D23: -6561.33 | E23: -6532.15 | F23: -7546.96 | H23: -29.18
A24: %,NGAS_OTHER_REV | B24: Gas Comm & Indust Other Rev | D24: -6561.33 | E24: -6532.15 | F24: -7546.96 | H24: -29.18
A25: %,R,FACCOUNT,TNI_ACCOUNT_FERC,XBYYYYY01,NGAS_COMM_INDUST_REV | B25: Gas Comm & Indust Revenues | D25: 7619313.49 | E25: =D25-H25 -> -5203580.06 | F25: 31537707.53 | H25: 12822893.55
A26: %,V48300000 | B26: Sales for Resale-Gas | C26: 48300000 | D26: 22445.02 | E26: =D26-H26 -> -658.48 | F26: 65622.38 | H26: 23103.5
A27: %,R,FACCOUNT,TNI_ACCOUNT_FERC,XBYYYYY01,NGAS_SALES_RESALE | B27: Gas Sales for Resale | D27: 22445.02 | E27: -658.48 | F27: 65622.38 | H27: 23103.5
A28: %,R,FACCOUNT,TNI_ACCOUNT_FERC,XBYYYYY01,NGAS_INTERDEPT_SALES | B28: Gas Interdepartmental Sales | D28: 0 | E28: 0 | F28: 0
A29: %,R,FACCOUNT,TNI_ACCOUNT_FERC,XBYYYYY01,NGAS_INTRACO_TRANSFER | B29: Gas Intercompany Transfers | D29: 0 | E29: =D29-H29 -> 0 | F29: 0
A30: xx | B30: Total Sales of Gas | D30: =D15+D25+D27+D28+D29 -> 24458241.64 | E30: =E15+E25+E27+E28+E29 -> -17514750.02 | F30: =F15+F25+F27+F28+F29 -> 102507899.8
A32: %,R,FACCOUNT,TNI_ACCOUNT_FERC,XBYYYYY01,NELE_RESID_REV | B32: Electric Residential Revenues | D32: 0 | E32: =D32-H32 -> 0 | F32: 0
A33: %,R,FACCOUNT,TNI_ACCOUNT_FERC,XBYYYYY01,NELE_COMM_IND_REV | B33: Elec Comm & Indust Rev | D33: 0 | E33: =D33-H33 -> 0 | F33: 0
A34: %,R,FACCOUNT,TNI_ACCOUNT_FERC,XBYYYYY01,NELE_STREET_HWY_LIGHT | B34: Public Street & Hwy Lighting | D34: 0 | E34: 0 | F34: 0
A35: %,R,FACCOUNT,TNI_ACCOUNT_FERC,XBYYYYY01,NELE_OTH_SALES_PUBLIC | B35: Elec Oth Sales to Public Auth | D35: 0 | E35: 0 | F35: 0
A36: %,R,FACCOUNT,TNI_ACCOUNT_FERC,XBYYYYY01,NELE_RAILROAD | B36: Sales to Railroads & Railways | D36: 0 | E36: 0 | F36: 0
A37: %,R,FACCOUNT,TNI_ACCOUNT_FERC,XBYYYYY01,NELE_SALES_RESALE | B37: Electric Sales for Resale | D37: 0 | E37: 0 | F37: 0
A38: %,R,FACCOUNT,TNI_ACCOUNT_FERC,XBYYYYY01,NELE_INTERDEPT_SALES | B38: Elec Interdepartmental Sales | D38: 0 | E38: 0 | F38: 0
A39: xx | B39: Total Sales of Electricity | D39: =D32+D33+D34+D35+D36+D37+D38 -> 0 | E39: =E32+E33+E34+E35+E36+E37+E38 -> 0 | F39: 0
A41: %,V48700000 | B41: Forfeited Discounts-Gas | C41: 48700000 | D41: 32001.57 | E41: =D41-H41 -> 1051.09 | F41: 89338.81 | H41: 30950.48
A42: %,R,FACCOUNT,TNI_ACCOUNT_FERC,XBYYYYY01,NFORFEITED_DISC_GAS | B42: Forfeited Discounts - Gas | D42: 32001.57 | E42: =D42-H42 -> 1051.09 | F42: 89338.81 | H42: 30950.48
A43: %,R,FACCOUNT,TNI_ACCOUNT_FERC,XBYYYYY01,NFORFEITED_DISC_ELE | B43: Forfeited Discounts - Ele | D43: 0 | E43: 0 | F43: 0
B44: Total Forfeited Discounts | D44: =D42+D43 -> 32001.57 | E44: =E42+E43 -> 1051.09 | F44: 89338.81
A46: %,V48800000 | B46: Misc Service Revenues-Gas | C46: 48800000 | D46: 6322 | E46: =D46-H46 -> 4908 | F46: 8941.57 | H46: 1414
A47: %,R,FACCOUNT,TNI_ACCOUNT_FERC,XBYYYYY01,NMISC_SERV_REVS_GAS | B47: Misc Service Revenues - Gas | D47: 6322 | E47: =D47-H47 -> 4908 | F47: 8941.57 | H47: 1414
A48: %,R,FACCOUNT,TNI_ACCOUNT_FERC,XBYYYYY01,NMISC_SERV_REVS_ELE | B48: Misc Service Revenues - Ele | D48: 0 | E48: 0 | F48: 0
B49: Total Miscellaneous Service Revenues | D49: =D47+D48 -> 6322 | E49: =E47+E48 -> 4908 | F49: 8941.57
A51: %,R,FACCOUNT,TNI_ACCOUNT_FERC,XBYYYYY01,NRENT_ELE_PROP | B51: Rent from Electricity Property | D51: 0 | E51: =D51-H51 -> 0 | F51: 0
A52: %,R,FACCOUNT,TNI_ACCOUNT_FERC,XBYYYYY01,NOTH_ELE_REV | B52: Other Electric Revenues | D52: 0 | E52: 0 | F52: 0
A53: %,R,FACCOUNT,TNI_ACCOUNT_FERC,XBYYYYY01,NOTH_ELE_TRANS_REV | B53: Rev Transm of Elec of Oth | D53: 0 | E53: 0 | F53: 0
A54: %,R,FACCOUNT,TNI_ACCOUNT_FERC,XBYYYYY01,NOTH_REV_SERVICE_CO | B54: Nonutility Revenues - Serv Co | D54: 0 | E54: 0 | F54: 0
A55: %,R,FACCOUNT,TNI_ACCOUNT_FERC,XBYYYYY01,NREG_ELE_TRANS_REV | B55: Regional Transm Service Rev | D55: 0 | E55: 0 | F55: 0
A56: %,R,FACCOUNT,TNI_ACCOUNT_FERC,XBYYYYY01,NTRANSPORT_GATH_REV | B56: Rev Transp Gas of Oth - Gather | D56: 0 | E56: 0 | F56: 0
A57: %,R,FACCOUNT,TNI_ACCOUNT_FERC,XBYYYYY01,NTRANSPORT_TRANS_REV | B57: Rev Transp Gas of Oth - Transm | D57: 0 | E57: 0 | F57: 0
A58: %,V48930000 | B58: Transp Rev Distr Residential | C58: 48930000 | D58: 1005511.3 | E58: =D58-H58 -> -384941.78 | F58: 3718562.85 | H58: 1390453.08
A59: %,V48930200 | B59: Unbilled Residential Trans Vol | C59: 48930200 | D59: -135673.4 | E59: -25296.4 | F59: -231332.9 | H59: -110377
A60: %,V48930300 | B60: Unbilled Res Trans Cust chrg | C60: 48930300 | D60: 0 | E60: 0 | F60: 0 | H60: 0
A61: %,V48931000 | B61: Transp Rev Distr Commercial | C61: 48931000 | D61: 1081326.79 | E61: -297573.68 | F61: 3899293.67 | H61: 1378900.47
A62: %,V48931300 | B62: Unbilled Comm Trans Vol | C62: 48931300 | D62: -81598.33 | E62: -19986.77 | F62: -108116.06 | H62: -61611.56
A63: %,V48931400 | B63: Unbilled Comm Trans Cust chrg | C63: 48931400 | D63: -440 | E63: -9570 | F63: 7370 | H63: 9130
A64: %,V48932000 | B64: Transp Rev Distr Industrial | C64: 48932000 | D64: 738557.41 | E64: -30759.98 | F64: 2439500.36 | H64: 769317.39
A65: %,V48932400 | B65: Unbilled Ind Trans Vol | C65: 48932400 | D65: -2667.18 | E65: -2935.72 | F65: -2448.85 | H65: 268.54
A66: %,V48932500 | B66: Unbilled Ind Trans Cust chrg | C66: 48932500 | D66: 0 | E66: 0 | F66: 0 | H66: 0
A67: %,R,FACCOUNT,TNI_ACCOUNT_FERC,XBYYYYY01,NTRANSPORT_DISTR_REV | B67: Rev Transp Gas of Oth - Distr | D67: 2605016.59 | E67: -771064.33 | F67: 9722829.07 | H67: 3376080.92
A68: %,R,FACCOUNT,TNI_ACCOUNT_FERC,XBYYYYY01,NSTORE_GAS_REV | B68: Rev from Storing Gas of Oth | D68: 0 | E68: 0 | F68: 0
A69: %,R,FACCOUNT,TNI_ACCOUNT_FERC,XBYYYYY01,NSALES_EXTRACT_GAS | B69: Sales - Prod Extracted from NG | D69: 0 | E69: 0 | F69: 0
A70: %,R,FACCOUNT,TNI_ACCOUNT_FERC,XBYYYYY01,NGAS_OIL_SALES | B70: Incidental Gasoline & Oil Sale | D70: 0 | E70: 0 | F70: 0
A71: %,V49300000 | B71: Rent from Gas Property | C71: 49300000 | D71: 21212.06 | E71: =D71-H71 -> 17711.11 | F71: 28213.96 | H71: 3500.95
A72: %,R,FACCOUNT,TNI_ACCOUNT_FERC,XBYYYYY01,NRENT_GAS_PROP | B72: Rent from Gas Property | D72: 21212.06 | E72: 17711.11 | F72: 28213.96 | H72: 3500.95
A74: %,V49500485 | B74: Unbilled Residential-Vol | C74: 49500485 | D74: -3399207.17 | E74: =D74-H74 -> 2635157.04 | F74: -5893910.23 | H74: -6034364.21
A75: %,V49501485 | B75: Unbilled Res Customer Chrg | C75: 49501485 | D75: -2698.75 | E75: -6904.08 | F75: 12556.58 | H75: 4205.33
A76: %,V49503483 | B76: Unbilled Off System Sales | C76: 49503483 | D76: 0 | E76: 0 | F76: 0 | H76: 0
A77: %,V49510485 | B77: Unbilled Commercial-Vol | C77: 49510485 | D77: -1301435.31 | E77: 1478004.41 | F77: -2513364.97 | H77: -2779439.72
A78: %,V49511485 | B78: Unbilled Comm Customer Chrg | C78: 49511485 | D78: -990 | E78: 9350 | F78: -1430 | H78: -10340
A79: %,V49520485 | B79: Unbilled Industrial-Vol | C79: 49520485 | D79: -24013.06 | E79: 88164.1 | F79: -155704.58 | H79: -112177.16
A80: %,V49521485 | B80: Unbilled Ind Customer Chrg | C80: 49521485 | D80: 0 | E80: 220 | F80: 330 | H80: -220
A81: %,NUNBILLED_REV_FERC | B81: Unbilled Revenues | D81: -4728344.29 | E81: 4203991.47 | F81: -8551523.2 | H81: -8932335.76
A82: %,V49500000 | B82: Other Gas Revenue | C82: 49500000 | D82: -885810.54 | E82: 1886517.22 | F82: -5619232.07 | H82: -2772327.76
A83: %,V49500001 | B83: AllConnect Prod-Srvs Othr Gas | C83: 49500001 | D83: 0 | E83: 0 | F83: 0 | H83: 0
A84: %,V49500050 | B84: Billed Off System Sales | C84: 49500050 | D84: 45115.75 | E84: 1640.8 | F84: 2668367.08 | H84: 43474.95
A85: %,R,FACCOUNT,TNI_ACCOUNT_FERC,XBYYYYY01,NOTH_GAS_REV | B85: Other Gas Revenues | D85: -5569039.08 | E85: 6092149.49 | F85: -11502388.19 | H85: -11661188.57
A86: %,R,FACCOUNT,TNI_ACCOUNT_FERC,XBYYYYY01,NGAS_PROV_RATE_REFUND | B86: Gas Provision of Rate Refunds | D86: 0 | E86: 0 | F86: 0
B87: Total Other Operating Revenues | D87: =D44+D49+D51+D52+D53+D54+D55+D56+D57+D67+D68+D69+D70+D72+D85+D86 -> -2904486.86 | E87: =E44+E49+E51+E52+E53+E54+E55+E56+E57+E67+E68+E69+E70+E72+E85+E86 -> 5344755.36 | F87: -1653064.78
A88: xx | B88: Total Operating Revenues | D88: =D30+D39+D87 -> 21553754.78 | E88: =E30+E39+E87 -> -12169994.66 | F88: =F30+F39+F87 -> 100854835
B90: Operating Expenses
B92: Operation Expenses
A94: %,FACCOUNT,TNI_ACCOUNT_FERC,XBYYYYY01,NOP_MANUF_GAS | B94: Manufac Gas Production - Oper | D94: 0 | E94: =D94-H94 -> 0 | F94: 0
A95: %,FACCOUNT,TNI_ACCOUNT_FERC,XBYYYYY01,NOP_NTRLGAS_PROD_GTH | B95: NG Production & Gather - Oper | D95: 0 | E95: 0 | F95: 0
A96: %,FACCOUNT,TNI_ACCOUNT_FERC,XBYYYYY01,NOP_PROD_EXTRACT | B96: Products Extraction - Oper | D96: 0 | E96: 0 | F96: 0
A98: %,V80100000 | B98: Natural gas field line purchas | C98: 80100000 | D98: 29081.6 | E98: =D98-H98 -> -33408.83 | F98: 123575.64 | H98: 62490.43
A99: %,NOP_NG_PURCH_FIELD | B99: NG Well Head Purchases | D99: 29081.6 | E99: -33408.83 | F99: 123575.64 | H99: 62490.43
A100: %,V80300300 | B100: Short Term Producer Purch | C100: 80300300 | D100: 774557.93 | E100: -3212610.71 | F100: 14052264.94 | H100: 3987168.64
A101: %,V80300400 | B101: Transportation Pipeline Exp | C101: 80300400 | D101: 2850025.44 | E101: 107669.43 | F101: 8449224.93 | H101: 2742356.01
A102: %,V80300500 | B102: Storage Charges Pipeline Exp | C102: 80300500 | D102: -696133.8 | E102: 586124.82 | F102: -2983009.58 | H102: -1282258.62
A103: %,V80300600 | B103: OFS_System Supply Credit | C103: 80300600 | D103: -112014.18 | E103: -10199.55 | F103: -2590898.01 | H103: -101814.63
A104: %,V80300808 | B104: Storage Demand | C104: 80300808 | D104: 1509918.7 | E104: 0 | F104: 4529756.1 | H104: 1509918.7
A105: %,NOP_NG_PURCH_TRANSLIN | B105: NG Transmission Line Purchases | D105: 4326354.09 | E105: -2529016.01 | F105: 21457338.38 | H105: 6855370.1
A106: %,V80400000 | B106: Natural Gas City Gate Purchase | C106: 80400000 | D106: 222526.85 | E106: -844188.79 | F106: 3046877.29 | H106: 1066715.64
A107: %,NOP_NG_PURCH_CITYGATE | B107: NG City Gate Purchases | D107: 222526.85 | E107: -844188.79 | F107: 3046877.29 | H107: 1066715.64
A108: %,V80510000 | B108: Purchased Gas Cost Adjustments | C108: 80510000 | D108: 1482788.19 | E108: 1337559.01 | F108: 8110836.99 | H108: 145229.18
A109: %,NOP_NG_PURCH_ADJUST | B109: Purchased Gas Cost Adjustments | D109: 1482788.19 | E109: 1337559.01 | F109: 8110836.99 | H109: 145229.18
A110: %,V80601000 | B110: Exchange Gas-Received | C110: 80601000 | D110: -1753988.37 | E110: -2203407.18 | F110: -3446694.42 | H110: 449418.81
A111: %,NOP_NG_PURCH_EXCHANGE | B111: Exchange Gas | D111: -1753988.37 | E111: -2203407.18 | F111: -3446694.42 | H111: 449418.81
A112: %,V80720000 | B112: Oper-Purch Gas Measrg Stations | C112: 80720000 | D112: 16924.74 | E112: 3006.05 | F112: 59913.91 | H112: 13918.69
A113: %,V80751000 | B113: Purch Gas Exp - Mgmt Fee | C113: 80751000 | D113: 7959.76 | E113: -557.79 | F113: 27152.8 | H113: 8517.55
A114: %,NOP_NG_PURCH_EXPENSE | B114: Purchased Gas Expenses | D114: 24884.5 | E114: 2448.26 | F114: 87066.71 | H114: 22436.24
A115: %,V80810000 | B115: Gas Withdrawn | C115: 80810000 | D115: 2736513.54 | E115: -4372672.63 | F115: 18388821.76 | H115: 7109186.17
A116: %,NOP_NG_PURCH_WITHDRAW | B116: Gas Withdrawn from Storage | D116: 2736513.54 | E116: -4372672.63 | F116: 18388821.76 | H116: 7109186.17
A117: %,V80820000 | B117: Gas Delivered | C117: 80820000 | D117: -195297.66 | E117: 347961.31 | F117: -1269504.43 | H117: -543258.97
A118: %,NOP_NG_PURCH_DELIVER | B118: Gas Delivered to Storage | D118: -195297.66 | E118: 347961.31 | F118: -1269504.43 | H118: -543258.97
A119: %,V81220000 | B119: Gas Used-Other-Offset | C119: 81220000 | D119: -16072.64 | E119: 15775 | F119: -74219.54 | H119: -31847.64
A120: %,NOP_NG_PURCH_OTHOPS | B120: Gas Used for Other Utility Ops | D120: -16072.64 | E120: 15775 | F120: -74219.54 | H120: -31847.64
A121: %,FACCOUNT,TNI_ACCOUNT_FERC,XBYYYYY01,NOP_OTH_GAS_SUPPLY | B121: Other Gas Supply - Operations | D121: 6856790.1 | E121: -8278949.86 | F121: 46424098.38 | H121: 15135739.96
A122: %,V50500000 | B122: Electric Exp | C122: 50500000 | D122: 0 | E122: =D122-H122 -> 0.02 | F122: -0.02 | H122: -0.02
A123: %,FACCOUNT,TNI_ACCOUNT_FERC,XBYYYYY01,NOP_STEAM_POWER | B123: Steam Power - Operations | D123: 0 | E123: 0.02 | F123: -0.02 | H123: -0.02
A124: %,FACCOUNT,TNI_ACCOUNT_FERC,XBYYYYY01,NOP_HYDRAULIC_POWER | B124: Hydraulic Power - Operations | D124: 0 | E124: 0 | F124: 0
A125: %,FACCOUNT,TNI_ACCOUNT_FERC,XBYYYYY01,NOP_SOLAR_GENERATION | B125: Solar Generation - Operations | D125: 0 | E125: =D125-H125 -> 0 | F125: 0
A126: %,V54800000 | B126: Generation Exp | C126: 54800000 | D126: 0 | E126: =D126-H126 -> 0 | F126: 0 | H126: 0
A127: %,FACCOUNT,TNI_ACCOUNT_FERC,XBYYYYY01,NOP_OTHER_POWER | B127: Other Power - Operations | D127: 0 | E127: 0 | F127: 0 | H127: 0
A128: %,V55700000 | B128: Other Exp | C128: 55700000 | D128: 0 | E128: =D128-H128 -> 0 | F128: 0 | H128: 0
A129: %,FACCOUNT,TNI_ACCOUNT_FERC,XBYYYYY01,NOP_OTH_POWER_SUPPLY | B129: Other Power Supply - Oper | D129: 0 | E129: =D129-H129 -> 0 | F129: 0 | H129: 0
A130: %,FACCOUNT,TNI_ACCOUNT_FERC,XBYYYYY01,NOP_NG_STOR_TERM_PROC | B130: NG Stor, Term & Proc - Oper | D130: 0 | E130: =D130-H130 -> 0 | F130: 0
A132: %,V85200000 | B132: Communication Exp Base Rate | C132: 85200000 | D132: 826.96 | E132: =D132-H132 -> 826.96 | F132: 826.96 | H132: 0
A133: %,V85200030 | B133: Communication System Exp | C133: 85200030 | D133: 1134.69 | E133: 473.05 | F133: 2843.42 | H133: 661.64
A134: %,NOP_GAS_TRANS_EXP | B134: Transmission Exp - Oper - Gas | D134: 1961.65 | E134: 1300.01 | F134: 3670.38 | H134: 661.64
A135: %,FACCOUNT,TNI_ACCOUNT_FERC,XBYYYYY01,NOP_TRANS_EXP | B135: Transmission Exp - Oper | D135: 1961.65 | E135: 1300.01 | F135: 3670.38 | H135: 661.64
A136: %,FACCOUNT,TNI_ACCOUNT_FERC,XBYYYYY01,NOP_REG_MARKET_EXP | B136: Regional Market Exp - Oper | D136: 0 | E136: 0 | F136: 0
A137: %,FACCOUNT,TNI_ACCOUNT_FERC,XBYYYYY01,NOP_ENERGY_STORAGE | B137: Energy Storage - Oper | D137: 0 | E137: =D137-H137 -> 0 | F137: 0
A139: %,V87000000 | B139: Op Superv-Eng-Gas Distr | C139: 87000000 | D139: 168932.72 | E139: =D139-H139 -> -52651.95 | F139: 544805.53 | H139: 221584.67
A140: %,V87100000 | B140: Distribution Load Dispatching | C140: 87100000 | D140: 13355.83 | E140: -6079.08 | F140: 81701.7 | H140: 19434.91
A141: %,V87400000 | B141: Mains and Services Exp | C141: 87400000 | D141: 603892.5 | E141: 195930.77 | F141: 1373969.24 | H141: 407961.73
A142: %,V87500000 | B142: Measur-Reg Statn Exp Gen | C142: 87500000 | D142: 21022.89 | E142: 6517.55 | F142: 47630.28 | H142: 14505.34
A143: %,V87600000 | B143: Measur-Reg Statn Exp-Indus | C143: 87600000 | D143: 8526.71 | E143: 1934.48 | F143: 20324.62 | H143: 6592.23
A144: %,V87800000 | B144: Meter and House Regulator Exp | C144: 87800000 | D144: 152899.1 | E144: 13831.65 | F144: 393819.63 | H144: 139067.45
A145: %,V87900000 | B145: Oper Installation Service Exp | C145: 87900000 | D145: 210529.59 | E145: -91760.5 | F145: 926460.82 | H145: 302290.09
A146: %,V88000000 | B146: Operations Exp Other | C146: 88000000 | D146: 118266.56 | E146: -5030.88 | F146: 376234.63 | H146: 123297.44
A147: %,V88100000 | B147: Gas Distr Rents | C147: 88100000 | D147: 2666.35 | E147: 723.12 | F147: 6462.61 | H147: 1943.23
A148: %,NOP_GAS_DISTR_EXP | B148: Distribution Exp - Oper - Gas | D148: 1300092.25 | E148: 63415.16 | F148: 3771409.06 | H148: 1236677.09
A149: %,FACCOUNT,TNI_ACCOUNT_FERC,XBYYYYY01,NOP_DISTR_EXP | B149: Distribution Exp - Oper | D149: 1300092.25 | E149: 63415.16 | F149: 3771409.06 | H149: 1236677.09
A150: %,V90200000 | B150: Cust Accnt Meter Reading Exp | C150: 90200000 | D150: 20703.82 | E150: =D150-H150 -> 5729.37 | F150: 24259.2 | H150: 14974.45
A151: %,V90300000 | B151: Cust Records Collection Exp | C151: 90300000 | D151: 172669.45 | E151: 31601.36 | F151: 474735.42 | H151: 141068.09
A152: %,V90400000 | B152: Uncollectible Accounts | C152: 90400000 | D152: 167162.29 | E152: -10928.56 | F152: 565783.58 | H152: 178090.85
A153: %,V90500000 | B153: Misc Cust Accts Exp | C153: 90500000 | D153: 1783.72 | E153: -28.58 | F153: 5052.13 | H153: 1812.3
A154: %,FACCOUNT,TNI_ACCOUNT_FERC,XBYYYYY01,NOP_CUST_ACCTS_EXP | B154: Customer Accounts - Oper | D154: 362319.28 | E154: 26373.59 | F154: 1069830.33 | H154: 335945.69
A155: %,V90800000 | B155: Customer Assistance Exp | C155: 90800000 | D155: 16475 | E155: =D155-H155 -> -23065 | F155: 56015 | H155: 39540
A156: %,V90900000 | B156: Inform_Instruct Advertisng Exp | C156: 90900000 | D156: 0 | E156: 0 | F156: 0 | H156: 0
A157: %,V91000000 | B157: Misc Cust Serv and Info Exp | C157: 91000000 | D157: 25328.64 | E157: 7193.53 | F157: 67846.03 | H157: 18135.11
A158: %,FACCOUNT,TNI_ACCOUNT_FERC,XBYYYYY01,NOP_CUSTOMER_SERV_EXP | B158: Cust Serv & Info Exp - Oper | D158: 41803.64 | E158: =D158-H158 -> -15871.47 | F158: 123861.03 | H158: 57675.11
A159: %,V91200000 | B159: Demonstrating and Selling Exp | C159: 91200000 | D159: 350.3 | E159: =D159-H159 -> 350.3 | F159: 350.3 | H159: 0
A160: %,FACCOUNT,TNI_ACCOUNT_FERC,XBYYYYY01,NOP_SALES_EXP | B160: Sales Expenses - Oper | D160: 350.3 | E160: 350.3 | F160: 350.3 | H160: 0
A161: %,V92000000 | B161: A_G Salaries | C161: 92000000 | D161: 911084.59 | E161: =D161-H161 -> 115290.68 | F161: 2571798.32 | H161: 795793.91
A162: %,V92001000 | B162: Discretionary and Spot Awards | C162: 92001000 | D162: 22919.25 | E162: 10107.75 | F162: 48257.47 | H162: 12811.5
A163: %,V92002000 | B163: Stock Compensation Expense | C163: 92002000 | D163: 91808.07 | E163: -74113.3 | F163: 415211.45 | H163: 165921.37
A164: %,V92100000 | B164: Office Supplies and Exp | C164: 92100000 | D164: 79044.92 | E164: 51146.89 | F164: 160424.13 | H164: 27898.03
A165: %,V92101000 | B165: Employee Expenses | C165: 92101000 | D165: 73641.28 | E165: 26608.38 | F165: 75782.09 | H165: 47032.9
A166: %,V92300000 | B166: Outside Service Employed | C166: 92300000 | D166: 434056.36 | E166: 4009.63 | F166: 1215061.61 | H166: 430046.73
A167: %,V92301000 | B167: Mgmt Fee Actuals-Affil | C167: 92301000 | D167: 250483.18 | E167: 42072.89 | F167: 656206.19 | H167: 208410.29
A168: %,V92400000 | B168: Property Insurance | C168: 92400000 | D168: 5061.82 | E168: 0 | F168: 15192.63 | H168: 5061.82
A169: %,V92500000 | B169: Injuries and Damages | C169: 92500000 | D169: 153575.33 | E169: 7256.37 | F169: 445398.25 | H169: 146318.96
A170: %,V92600000 | B170: Employee Pensions and Benefits | C170: 92600000 | D170: 377619.03 | E170: -127157.23 | F170: 1393253.82 | H170: 504776.26
A171: %,V92601000 | B171: Non Service Pension & OPEB | C171: 92601000 | D171: -28593.91 | E171: -1423.99 | F171: -82933.75 | H171: -27169.92
A172: %,V92800000 | B172: Regulatory Commission Exp | C172: 92800000 | D172: 85881 | E172: 32415 | F172: 179428.21 | H172: 53466
A173: %,V93010000 | B173: General Advertising Exp | C173: 93010000 | D173: 36.1 | E173: -2438.88 | F173: 2511.08 | H173: 2474.98
A174: %,V93020000 | B174: Misc General Exp | C174: 93020000 | D174: 46713.49 | E174: 48437.87 | F174: 57437.2 | H174: -1724.38
A175: %,V93100000 | B175: Rents Admin and General | C175: 93100000 | D175: 75710.63 | E175: 10315.12 | F175: 205312.3 | H175: 65395.51
A176: %,FACCOUNT,TNI_ACCOUNT_FERC,XBYYYYY01,NOP_ADMIN_GEN | B176: Admin & General Exp - Oper | D176: 2579041.14 | E176: 142527.18 | F176: 7358341 | H176: 2436513.96
B177: Total Operation Expenses | D177: =D94+D95+D96+D121+D123+D124+D125+D127+D129+D130+D135+D137+D136+D149+D154+D158+D160+D176 -> 11142358.36 | E177: =E94+E95+E96+E121+E123+E124+E125+E127+E129+E130+E135+E137+E136+E149+E154+E158+E160+E176 -> -8060855.07 | F177: =F94+F95+F96+F121+F123+F124+F125+F127+F129+F130+F135+F137+F136+F149+F154+F158+F160+F176 -> 58751560.46
B179: Maintenance Expenses
A181: %,FACCOUNT,TNI_ACCOUNT_FERC,XBYYYYY01,NMAINT_PROD_EXP | B181: Production Expenses - Maint | D181: 0 | E181: =D181-H181 -> 0 | F181: 0
A182: %,FACCOUNT,TNI_ACCOUNT_FERC,XBYYYYY01,NMAINT_NG_STOR_PROC | B182: NG Stor, Term & Proc - Maint | D182: 0 | E182: 0 | F182: 0
A184: %,V56910000 | B184: Maint of Computer Hardware | C184: 56910000 | D184: 0 | E184: =D184-H184 -> 0 | F184: 0 | H184: 0
A185: %,V56920000 | B185: Maint of Computer Software | C185: 56920000 | D185: 0 | E185: 0 | F185: 0 | H185: 0
A186: %,NMAINT_ELEC_TRANS_EXP | B186: Transmission Exp - Maint-Elec | D186: 0 | E186: 0 | F186: 0 | H186: 0
A187: %,FACCOUNT,TNI_ACCOUNT_FERC,XBYYYYY01,NMAINT_TRANS_EXP | B187: Transmission Exp - Maint | D187: 0 | E187: 0 | F187: 0 | H187: 0
A188: %,FACCOUNT,TNI_ACCOUNT_FERC,XBYYYYY01,NMAINT_ENERGY_STORAGE | B188: Energy Storage - Maint | D188: 0 | E188: =D188-H188 -> 0 | F188: 0
A190: %,V59700000 | B190: Maint of Meters | C190: 59700000 | D190: 0 | E190: =D190-H190 -> 0 | F190: 0 | H190: 0
A191: %,NMAINT_ELEC_DISTR_EXP | B191: Distribution Exp - Maint-Elec | D191: 0 | E191: 0 | F191: 0 | H191: 0
A192: %,V88500000 | B192: Maint Supv-Eng-Gas Distr | C192: 88500000 | D192: 4774.05 | E192: -568.12 | F192: 15885.58 | H192: 5342.17
A193: %,V88600000 | B193: Maint Struct-Improv-Gas Distr | C193: 88600000 | D193: 31826.18 | E193: 12807.71 | F193: 73982.62 | H193: 19018.47
A194: %,V88700000 | B194: Maint of Mains | C194: 88700000 | D194: 175501.37 | E194: 28469.6 | F194: 508558.2 | H194: 147031.77
A195: %,V88900000 | B195: Maint Msr-Reg Statn Equi Gen | C195: 88900000 | D195: 56038.55 | E195: 39942.62 | F195: 102263.81 | H195: 16095.93
A196: %,V89000000 | B196: Maint Meas_Reg Stn Equip-Distr | C196: 89000000 | D196: 6215.02 | E196: -3273.4 | F196: 23586.74 | H196: 9488.42
A197: %,V89200000 | B197: Maint of Services | C197: 89200000 | D197: -32260.84 | E197: -172729.59 | F197: 223547.22 | H197: 140468.75
A198: %,V89300000 | B198: Maint Meters_House Regulators | C198: 89300000 | D198: 19689.4 | E198: -8134.42 | F198: 65907 | H198: 27823.82
A199: %,V89400000 | B199: Other Maint Equipment | C199: 89400000 | D199: 62107.5 | E199: 10617.52 | F199: 170880.03 | H199: 51489.98
A200: %,NMAINT_GAS_DISTR_EXP | B200: Distribution Exp - Maint-Gas | D200: 323891.23 | E200: -92868.08 | F200: 1184611.2 | H200: 416759.31
A201: %,FACCOUNT,TNI_ACCOUNT_FERC,XBYYYYY01,NMAINT_DISTR_EXP | B201: Distribution Exp - Maint | D201: 323891.23 | E201: -92868.08 | F201: 1184611.2 | H201: 416759.31
A202: %,V93200000 | B202: Maint General Plant | C202: 93200000 | D202: 183582.22 | E202: =D202-H202 -> 59962.97 | F202: 471392.31 | H202: 123619.25
A203: %,FACCOUNT,TNI_ACCOUNT_FERC,XBYYYYY01,NMAINT_ADMIN_GEN | B203: Maintenance Gen and Admin | D203: 183582.22 | E203: 59962.97 | F203: 471392.31 | H203: 123619.25
B204: Total Maintenance Expenses | D204: =D181+D182+D187+D188+D201+D203 -> 507473.45 | E204: =E181+E182+E187+E188+E201+E203 -> -32905.11 | F204: =F181+F182+F187+F188+F201+F203 -> 1656003.51
A206: %,V40300000 | B206: Dep Exp | C206: 40300000 | D206: 2190968.35 | E206: =D206-H206 -> 9135.92 | F206: 6542630.48 | H206: 2181832.43
A207: %,FACCOUNT,TNI_ACCOUNT_FERC,XBYYYYY01,NDEPRECIATION_EXPENSE | B207: Depreciation Expense | D207: 2190968.35 | E207: =D207-H207 -> 9135.92 | F207: 6542630.48 | H207: 2181832.43
A208: %,FACCOUNT,TNI_ACCOUNT_FERC,XBYYYYY01,NDEPRECIATION_ARO_EXP | B208: Depreciation Expense for AROs | D208: 0 | E208: 0 | F208: 0
A210: %,V40430000 | B210: Amortization Exp-Other | C210: 40430000 | D210: 38596.53 | E210: =D210-H210 -> 511.16 | F210: 114776.73 | H210: 38085.37
A211: %,V40434000 | B211: Cloude Amortizaiton Expense | C211: 40434000 | D211: 99034.29 | E211: -2414.42 | F211: 295379.95 | H211: 101448.71
A212: %,NAMORT_LMT_TERM_PROP | B212: Amort of Limited-Term Property | D212: 137630.82 | E212: -1903.26 | F212: 410156.68 | H212: 139534.08
A213: %,V40500000 | B213: Amortization of Oth Plant | C213: 40500000 | D213: 472614.79 | E213: 175812.91 | F213: 1043096.51 | H213: 296801.88
A214: %,NAMORT_OTH_PROP | B214: Amort of Other Property | D214: 472614.79 | E214: 175812.91 | F214: 1043096.51 | H214: 296801.88
A215: %,FACCOUNT,TNI_ACCOUNT_FERC,XBYYYYY01,NAMORT_DEPL_UTIL | B215: Amort & Deplet of Util Plant | D215: 610245.61 | E215: 173909.65 | F215: 1453253.19 | H215: 436335.96
A216: %,FACCOUNT,TNI_ACCOUNT_FERC,XBYYYYY01,NAMORT_UTIL_ADJ | B216: Amort of Gas Plant Acq Adj | D216: 0 | E216: 0 | F216: 0
A217: %,FACCOUNT,TNI_ACCOUNT_FERC,XBYYYYY01,NAMORT_CONV_EXP | B217: Amort of Conversion Exp | D217: 0 | E217: 0 | F217: 0
A218: %,FACCOUNT,TNI_ACCOUNT_FERC,XBYYYYY01,NREG_DEBITS | B218: Reg Debits | D218: 0 | E218: 0 | F218: 0
A219: %,FACCOUNT,TNI_ACCOUNT_FERC,XBYYYYY01,NREG_CREDITS | B219: Reg Credits | D219: 0 | E219: 0 | F219: 0
A220: %,V40813100 | B220: Tax Exp-License_Franchise | C220: 40813100 | D220: 2400 | E220: =D220-H220 -> 2400 | F220: 8400 | H220: 0
A221: %,V40813200 | B221: Tax Exp-Property | C221: 40813200 | D221: -2528473.29 | E221: -3262880.29 | F221: -1059659.29 | H221: 734407
... 100 more rows
